[Event "Titled Tuesday Blitz March 28 Early 2023"]
[White "Mogirzan, Matei-Valeriu"]
[Black "Timofeev, Artyom"]
[WhiteFideId "1257455"]
[BlackFideId "4140419"]
[WhiteElo "1733"]
[BlackElo "2586"]
[Result "0-1"]
[Round "01"]
[TimeControl "180+2"]
[Date "2023.03.28"]
[WhiteClock "0:00:02"]
[BlackClock "0:00:22"]

1. e4 {[%clk 0:03:00]}  e5 {[%clk 0:02:51]} 2. f4 {[%clk 0:02:56]}  exf4 {[%clk 0:02:49]} 3. Nf3 {[%clk 0:02:54]}  d5 {[%clk 0:02:44]} 4. exd5 {[%clk 0:02:55]}  Nf6 {[%clk 0:02:43]} 5. Be2 {[%clk 0:02:54]}  Nxd5 {[%clk 0:02:40]} 6. O-O {[%clk 0:02:50]}  Bc5+ {[%clk 0:02:37]} 7. d4 {[%clk 0:02:42]}  Be7 {[%clk 0:02:37]} 8. c4 {[%clk 0:02:40]}  Ne3 {[%clk 0:02:37]} 9. Bxe3 {[%clk 0:02:40]}  fxe3 {[%clk 0:02:37]} 10. Nc3 {[%clk 0:02:40]}  O-O {[%clk 0:02:36]} 11. Qd3 {[%clk 0:02:36]}  Nc6 {[%clk 0:02:34]} 12. Rad1 {[%clk 0:02:26]}  Bf6 {[%clk 0:02:29]} 13. Nd5 {[%clk 0:02:06]}  Bg4 {[%clk 0:02:28]} 14. Qxe3 {[%clk 0:02:04]}  Bxf3 {[%clk 0:02:07]} 15. Nxf6+ {[%clk 0:01:32]}  Qxf6 {[%clk 0:02:05]} 16. Rxf3 {[%clk 0:01:26]}  Qd6 {[%clk 0:01:50]} 17. d5 {[%clk 0:01:08]}  Rae8 {[%clk 0:01:38]} 18. Qd2 {[%clk 0:00:45]}  Qc5+ {[%clk 0:01:33]} 19. Kh1 {[%clk 0:00:45]}  Ne5 {[%clk 0:01:32]} 20. Rg3 {[%clk 0:00:42]}  g6 {[%clk 0:01:26]} 21. b3 {[%clk 0:00:39]}  Re7 {[%clk 0:01:14]} 22. b4 {[%clk 0:00:31]}  Qf2 {[%clk 0:01:02]} 23. Qe3 {[%clk 0:00:06]}  Qxe3 {[%clk 0:00:41]} 24. Rxe3 {[%clk 0:00:07]}  Rd8 {[%clk 0:00:41]} 25. c5 {[%clk 0:00:02]}  f6 {[%clk 0:00:41]} 26. Bf3 {[%clk 0:00:02]}  Kf7 {[%clk 0:00:37]} 27. d6 {[%clk 0:00:02]}  cxd6 {[%clk 0:00:37]} 28. cxd6 {[%clk 0:00:03]}  Red7 {[%clk 0:00:37]} 29. Bd5+ {[%clk 0:00:03]}  Kg7 {[%clk 0:00:37]} 30. Rde1 {[%clk 0:00:02]}  b6 {[%clk 0:00:35]} 31. Bb3 {[%clk 0:00:03]}  Rxd6 {[%clk 0:00:35]} 32. Rc3 {[%clk 0:00:03]}  R8d7 {[%clk 0:00:34]} 33. Rc8 {[%clk 0:00:02]}  h5 {[%clk 0:00:31]} 34. h4 {[%clk 0:00:02]}  Rd8 {[%clk 0:00:27]} 35. Rc7+ {[%clk 0:00:02]}  R6d7 {[%clk 0:00:27]} 36. Rc3 {[%clk 0:00:02]}  Ng4 {[%clk 0:00:25]} 37. Re6 {[%clk 0:00:01]}  Rd1+ {[%clk 0:00:22]} 38. Bxd1 {[%clk 0:00:02]}  Rxd1+ {[%clk 0:00:22]} 0-1


[Site "https://www.chess.com"]

[Event "Titled Tuesday Blitz March 28 Early 2023"]
[White "Asadli, Vugar"]
[Black "Olsson, William"]
[WhiteFideId "13405764"]
[BlackFideId "1741721"]
[WhiteElo "2598"]
[BlackElo "2197"]
[Result "1-0"]
[Round "01"]
[TimeControl "180+2"]
[Date "2023.03.28"]
[WhiteClock "0:00:57"]
[BlackClock "0:00:20"]

1. e4 {[%clk 0:03:00]}  c5 {[%clk 0:02:58]} 2. Nf3 {[%clk 0:02:59]}  d6 {[%clk 0:02:58]} 3. d4 {[%clk 0:02:59]}  cxd4 {[%clk 0:02:59]} 4. Nxd4 {[%clk 0:03:00]}  Nf6 {[%clk 0:02:59]} 5. Nc3 {[%clk 0:03:01]}  g6 {[%clk 0:03:00]} 6. f3 {[%clk 0:02:59]}  Bg7 {[%clk 0:03:01]} 7. Be3 {[%clk 0:03:00]}  O-O {[%clk 0:03:01]} 8. Qd2 {[%clk 0:02:59]}  Nc6 {[%clk 0:03:01]} 9. O-O-O {[%clk 0:02:58]}  d5 {[%clk 0:03:01]} 10. exd5 {[%clk 0:02:57]}  Nxd5 {[%clk 0:03:01]} 11. Nxc6 {[%clk 0:02:58]}  bxc6 {[%clk 0:03:02]} 12. Bd4 {[%clk 0:02:58]}  e5 {[%clk 0:03:00]} 13. Bc5 {[%clk 0:02:53]}  Re8 {[%clk 0:03:01]} 14. Ne4 {[%clk 0:02:49]}  Qc7 {[%clk 0:02:44]} 15. h4 {[%clk 0:02:25]}  h6 {[%clk 0:02:40]} 16. g4 {[%clk 0:02:23]}  Be6 {[%clk 0:02:35]} 17. h5 {[%clk 0:02:18]}  g5 {[%clk 0:02:34]} 18. Bc4 {[%clk 0:02:06]}  Rad8 {[%clk 0:02:33]} 19. Qf2 {[%clk 0:01:58]}  Nf4 {[%clk 0:02:26]} 20. Bxe6 {[%clk 0:01:52]}  Nxe6 {[%clk 0:02:25]} 21. Be3 {[%clk 0:01:46]}  Rd4 {[%clk 0:02:08]} 22. c3 {[%clk 0:01:42]}  Rd5 {[%clk 0:01:57]} 23. Qc2 {[%clk 0:01:34]}  Red8 {[%clk 0:01:46]} 24. Qa4 {[%clk 0:01:33]}  Nf4 {[%clk 0:01:35]} 25. Qxa7 {[%clk 0:01:13]}  Qxa7 {[%clk 0:01:04]} 26. Bxa7 {[%clk 0:01:13]}  Ra8 {[%clk 0:01:04]} 27. Be3 {[%clk 0:01:09]}  Rxa2 {[%clk 0:01:03]} 28. Kc2 {[%clk 0:01:05]}  Kf8 {[%clk 0:00:26]} 29. c4 {[%clk 0:01:02]}  Rxd1 {[%clk 0:00:24]} 30. Rxd1 {[%clk 0:01:02]}  Ra8 {[%clk 0:00:23]} 31. Rd7 {[%clk 0:01:00]}  Ke8 {[%clk 0:00:20]} 32. Rb7 {[%clk 0:00:58]}  Ne6 {[%clk 0:00:20]} 33. Nd6+ {[%clk 0:00:57]} 1-0


[Site "https://www.chess.com"]

[Event "Titled Tuesday Blitz March 28 Early 2023"]
[White "Ozen, Bahadir"]
[Black "Hindermann, Felix"]
[WhiteFideId "6337058"]
[BlackFideId "1305212"]
[WhiteElo "2503"]
[BlackElo "2206"]
[Result "1-0"]
[Round "01"]
[TimeControl "180+2"]
[Date "2023.03.28"]
[WhiteClock "0:01:20"]
[BlackClock "0:00:01"]

1. g3 {[%clk 0:03:00]}  c5 {[%clk 0:02:59]} 2. Bg2 {[%clk 0:03:00]}  Nc6 {[%clk 0:02:59]} 3. Nf3 {[%clk 0:02:59]}  g6 {[%clk 0:03:00]} 4. O-O {[%clk 0:02:59]}  Bg7 {[%clk 0:03:00]} 5. c3 {[%clk 0:02:58]}  e5 {[%clk 0:03:01]} 6. d4 {[%clk 0:02:57]}  cxd4 {[%clk 0:03:01]} 7. cxd4 {[%clk 0:02:58]}  e4 {[%clk 0:03:02]} 8. Ne5 {[%clk 0:02:57]}  d5 {[%clk 0:02:52]} 9. Nxc6 {[%clk 0:02:52]}  bxc6 {[%clk 0:02:52]} 10. Qc2 {[%clk 0:02:44]}  Qb6 {[%clk 0:02:45]} 11. Nd2 {[%clk 0:02:36]}  Bxd4 {[%clk 0:02:29]} 12. Nb3 {[%clk 0:02:27]}  Bg7 {[%clk 0:02:05]} 13. Be3 {[%clk 0:02:27]}  Qc7 {[%clk 0:01:38]} 14. Bf4 {[%clk 0:02:20]}  Qb6 {[%clk 0:01:30]} 15. Rac1 {[%clk 0:02:14]}  Ne7 {[%clk 0:01:29]} 16. Bd6 {[%clk 0:02:15]}  Ba6 {[%clk 0:00:54]} 17. Bxe4 {[%clk 0:01:24]}  dxe4 {[%clk 0:00:51]} 18. Qxe4 {[%clk 0:01:25]}  Bf6 {[%clk 0:00:46]} 19. Nc5 {[%clk 0:01:23]}  Rd8 {[%clk 0:00:22]} 20. Rfd1 {[%clk 0:01:22]}  O-O {[%clk 0:00:07]} 21. Bxe7 {[%clk 0:01:23]}  Rfe8 {[%clk 0:00:05]} 22. Rxd8 {[%clk 0:01:21]}  Rxd8 {[%clk 0:00:05]} 23. Bxf6 {[%clk 0:01:21]}  Rc8 {[%clk 0:00:01]} 24. Qe3 {[%clk 0:01:20]} 1-0


[Site "https://www.chess.com"]

[Event "Titled Tuesday Blitz March 28 Early 2023"]
[White "ElDivis"]
[Black "Mendonca, Leon Luke"]
[BlackFideId "35028561"]
[WhiteElo "2439"]
[BlackElo "2464"]
[Result "1-0"]
[Round "01"]
[TimeControl "180+2"]
[Date "2023.03.28"]
[WhiteClock "0:00:19"]
[BlackClock "0:00:27"]

1. e4 {[%clk 0:02:57]}  c5 {[%clk 0:02:55]} 2. Nf3 {[%clk 0:02:54]}  b6 {[%clk 0:02:48]} 3. d4 {[%clk 0:02:49]}  cxd4 {[%clk 0:02:49]} 4. Nxd4 {[%clk 0:02:49]}  Bb7 {[%clk 0:02:50]} 5. Nc3 {[%clk 0:02:49]}  Nf6 {[%clk 0:02:45]} 6. Bd3 {[%clk 0:02:45]}  Nc6 {[%clk 0:02:33]} 7. Nxc6 {[%clk 0:02:42]}  Bxc6 {[%clk 0:02:34]} 8. O-O {[%clk 0:02:42]}  e6 {[%clk 0:02:32]} 9. e5 {[%clk 0:02:32]}  Nd5 {[%clk 0:02:32]} 10. Ne4 {[%clk 0:02:20]}  Nb4 {[%clk 0:02:20]} 11. a3 {[%clk 0:01:57]}  Nxd3 {[%clk 0:02:20]} 12. Qxd3 {[%clk 0:01:58]}  Be7 {[%clk 0:02:16]} 13. Nd6+ {[%clk 0:01:45]}  Bxd6 {[%clk 0:02:15]} 14. Qxd6 {[%clk 0:01:14]}  Qe7 {[%clk 0:02:14]} 15. Qxe7+ {[%clk 0:00:58]}  Kxe7 {[%clk 0:02:14]} 16. Bd2 {[%clk 0:00:58]}  f6 {[%clk 0:02:14]} 17. Bc3 {[%clk 0:00:54]}  h5 {[%clk 0:02:11]} 18. Rfe1 {[%clk 0:00:53]}  h4 {[%clk 0:02:11]} 19. Rad1 {[%clk 0:00:49]}  Rh5 {[%clk 0:02:10]} 20. Rd4 {[%clk 0:00:28]}  Rah8 {[%clk 0:02:06]} 21. Rg4 {[%clk 0:00:25]}  Kf7 {[%clk 0:02:00]} 22. exf6 {[%clk 0:00:24]}  gxf6 {[%clk 0:02:00]} 23. h3 {[%clk 0:00:23]}  R8h6 {[%clk 0:01:58]} 24. f3 {[%clk 0:00:22]}  Rh8 {[%clk 0:01:28]} 25. Kf2 {[%clk 0:00:22]}  e5 {[%clk 0:01:28]} 26. Rd1 {[%clk 0:00:22]}  Ke6 {[%clk 0:01:17]} 27. f4 {[%clk 0:00:21]}  Rf5 {[%clk 0:01:10]} 28. Re1 {[%clk 0:00:20]}  Kf7 {[%clk 0:01:05]} 29. Kg1 {[%clk 0:00:20]}  exf4 {[%clk 0:01:04]} 30. Bb4 {[%clk 0:00:19]}  Re5 {[%clk 0:00:56]} 31. Rxf4 {[%clk 0:00:16]}  Rxe1+ {[%clk 0:00:49]} 32. Bxe1 {[%clk 0:00:17]}  Re8 {[%clk 0:00:47]} 33. Bxh4 {[%clk 0:00:16]}  Re2 {[%clk 0:00:46]} 34. Rxf6+ {[%clk 0:00:16]}  Kg7 {[%clk 0:00:45]} 35. Rf2 {[%clk 0:00:17]}  Re4 {[%clk 0:00:45]} 36. Bg3 {[%clk 0:00:17]}  Re1+ {[%clk 0:00:45]} 37. Kh2 {[%clk 0:00:17]}  b5 {[%clk 0:00:44]} 38. Rf7+ {[%clk 0:00:16]}  Kxf7 {[%clk 0:00:43]} 39. Bxe1 {[%clk 0:00:17]}  Kg6 {[%clk 0:00:44]} 40. g4 {[%clk 0:00:17]}  Be4 {[%clk 0:00:43]} 41. c3 {[%clk 0:00:17]}  Bd3 {[%clk 0:00:43]} 42. Bf2 {[%clk 0:00:17]}  a5 {[%clk 0:00:42]} 43. Kg3 {[%clk 0:00:17]}  a4 {[%clk 0:00:42]} 44. Bd4 {[%clk 0:00:17]}  Be2 {[%clk 0:00:41]} 45. h4 {[%clk 0:00:18]}  Bd1 {[%clk 0:00:42]} 46. h5+ {[%clk 0:00:18]}  Kh6 {[%clk 0:00:41]} 47. Kh4 {[%clk 0:00:18]}  Kh7 {[%clk 0:00:37]} 48. g5 {[%clk 0:00:18]}  Kg8 {[%clk 0:00:33]} 49. g6 {[%clk 0:00:19]}  Kf8 {[%clk 0:00:26]} 50. Kg5 {[%clk 0:00:19]}  Ke7 {[%clk 0:00:27]} 51. h6 {[%clk 0:00:19]} 1-0


[Site "https://www.chess.com"]

[Event "Titled Tuesday Blitz March 28 Early 2023"]
[White "Horvath, Dominik"]
[Black "Meissner, Felix"]
[WhiteFideId "1642561"]
[BlackFideId "24671827"]
[WhiteElo "2407"]
[BlackElo "2350"]
[Result "1-0"]
[Round "01"]
[TimeControl "180+2"]
[Date "2023.03.28"]
[WhiteClock "0:00:05"]
[BlackClock "0:00:18"]

1. e4 {[%clk 0:02:52]}  c6 {[%clk 0:02:58]} 2. d4 {[%clk 0:02:50]}  g6 {[%clk 0:02:58]} 3. c4 {[%clk 0:02:40]}  d5 {[%clk 0:02:58]} 4. cxd5 {[%clk 0:02:38]}  cxd5 {[%clk 0:02:59]} 5. Nc3 {[%clk 0:02:34]}  dxe4 {[%clk 0:02:58]} 6. Bf4 {[%clk 0:02:34]}  Nf6 {[%clk 0:02:57]} 7. h4 {[%clk 0:02:16]}  h5 {[%clk 0:02:56]} 8. Bc4 {[%clk 0:02:04]}  Bg7 {[%clk 0:02:54]} 9. Nh3 {[%clk 0:02:04]}  O-O {[%clk 0:02:53]} 10. Ng5 {[%clk 0:02:05]}  Nc6 {[%clk 0:02:50]} 11. O-O {[%clk 0:02:02]}  Qxd4 {[%clk 0:02:44]} 12. Qxd4 {[%clk 0:02:02]}  Nxd4 {[%clk 0:02:45]} 13. Rfd1 {[%clk 0:02:02]}  Ne6 {[%clk 0:02:31]} 14. Be3 {[%clk 0:01:53]}  Nxg5 {[%clk 0:02:26]} 15. hxg5 {[%clk 0:01:54]}  Ng4 {[%clk 0:02:26]} 16. Bc5 {[%clk 0:01:55]}  Ne5 {[%clk 0:02:22]} 17. Bd5 {[%clk 0:01:47]}  Nd3 {[%clk 0:02:15]} 18. Bxe7 {[%clk 0:01:43]}  Re8 {[%clk 0:02:15]} 19. Bf6 {[%clk 0:01:31]}  Bf5 {[%clk 0:01:56]} 20. Bxb7 {[%clk 0:01:19]}  Rab8 {[%clk 0:01:55]} 21. Bc6 {[%clk 0:01:20]}  Nxb2 {[%clk 0:01:47]} 22. Bxe8 {[%clk 0:01:15]}  Nxd1 {[%clk 0:01:46]} 23. Bxf7+ {[%clk 0:00:28]}  Kxf7 {[%clk 0:01:45]} 24. Bxg7 {[%clk 0:00:28]}  Kxg7 {[%clk 0:01:39]} 25. Rxd1 {[%clk 0:00:28]}  Rc8 {[%clk 0:01:36]} 26. Nb5 {[%clk 0:00:25]}  Rc2 {[%clk 0:01:29]} 27. a3 {[%clk 0:00:20]}  a6 {[%clk 0:01:28]} 28. Nd4 {[%clk 0:00:21]}  Ra2 {[%clk 0:01:25]} 29. Rc1 {[%clk 0:00:20]}  Rxa3 {[%clk 0:01:20]} 30. Rc7+ {[%clk 0:00:20]}  Kf8 {[%clk 0:01:20]} 31. Nxf5 {[%clk 0:00:18]}  gxf5 {[%clk 0:01:21]} 32. Rc5 {[%clk 0:00:18]}  Kg7 {[%clk 0:01:14]} 33. Rxf5 {[%clk 0:00:18]}  Kg6 {[%clk 0:01:14]} 34. Re5 {[%clk 0:00:19]}  a5 {[%clk 0:01:08]} 35. Kh2 {[%clk 0:00:19]}  a4 {[%clk 0:01:02]} 36. Ra5 {[%clk 0:00:16]}  Ra2 {[%clk 0:00:59]} 37. Kg3 {[%clk 0:00:17]}  a3 {[%clk 0:00:58]} 38. f4 {[%clk 0:00:14]}  Ra1 {[%clk 0:00:38]} 39. Ra6+ {[%clk 0:00:01]}  Kf7 {[%clk 0:00:38]} 40. f5 {[%clk 0:00:01]}  a2 {[%clk 0:00:38]} 41. Ra7+ {[%clk 0:00:02]}  Kf8 {[%clk 0:00:37]} 42. f6 {[%clk 0:00:02]}  h4+ {[%clk 0:00:25]} 43. Kg4 {[%clk 0:00:02]}  h3 {[%clk 0:00:18]} 44. g6 {[%clk 0:00:03]}  Ke8 {[%clk 0:00:19]} 45. f7+ {[%clk 0:00:03]}  Kf8 {[%clk 0:00:19]} 46. Ra8+ {[%clk 0:00:03]}  Ke7 {[%clk 0:00:18]} 47. f8=Q+ {[%clk 0:00:04]}  Ke6 {[%clk 0:00:18]} 48. Qf7+ {[%clk 0:00:05]} 1-0


[Site "https://www.chess.com"]

[Event "Titled Tuesday Blitz March 28 Early 2023"]
[White "Boyer, Mahel"]
[Black "Bas Mas, Jose Joaquin"]
[WhiteFideId "45102422"]
[BlackFideId "22219064"]
[WhiteElo "2439"]
[BlackElo "2233"]
[Result "1-0"]
[Round "01"]
[TimeControl "180+2"]
[Date "2023.03.28"]
[WhiteClock "0:00:25"]
[BlackClock "0:00:06"]

1. Nf3 {[%clk 0:02:59]}  Nf6 {[%clk 0:02:59]} 2. g3 {[%clk 0:02:57]}  e6 {[%clk 0:02:59]} 3. Bg2 {[%clk 0:02:58]}  d5 {[%clk 0:03:00]} 4. O-O {[%clk 0:02:58]}  Be7 {[%clk 0:03:00]} 5. d3 {[%clk 0:02:54]}  O-O {[%clk 0:03:00]} 6. Nc3 {[%clk 0:02:53]}  d4 {[%clk 0:02:52]} 7. Nb1 {[%clk 0:02:52]}  c5 {[%clk 0:02:51]} 8. Na3 {[%clk 0:02:41]}  Nc6 {[%clk 0:02:47]} 9. Nc4 {[%clk 0:02:41]}  Re8 {[%clk 0:02:47]} 10. c3 {[%clk 0:02:23]}  h6 {[%clk 0:02:44]} 11. cxd4 {[%clk 0:02:14]}  cxd4 {[%clk 0:02:43]} 12. a3 {[%clk 0:02:14]}  a5 {[%clk 0:02:37]} 13. Qb3 {[%clk 0:01:54]}  a4 {[%clk 0:02:33]} 14. Qb5 {[%clk 0:01:53]}  Nd5 {[%clk 0:02:25]} 15. Bd2 {[%clk 0:01:48]}  Ra7 {[%clk 0:01:45]} 16. Nfe5 {[%clk 0:01:05]}  Nxe5 {[%clk 0:01:20]} 17. Nxe5 {[%clk 0:01:05]}  Bf6 {[%clk 0:01:15]} 18. Nc4 {[%clk 0:00:51]}  Bd7 {[%clk 0:01:13]} 19. Qc5 {[%clk 0:00:51]}  b6 {[%clk 0:01:12]} 20. Qd6 {[%clk 0:00:49]}  Be7 {[%clk 0:00:50]} 21. Qe5 {[%clk 0:00:44]}  Bf6 {[%clk 0:00:51]} 22. Qd6 {[%clk 0:00:44]}  Be7 {[%clk 0:00:51]} 23. Qe5 {[%clk 0:00:44]}  Bf6 {[%clk 0:00:52]} 24. Qh5 {[%clk 0:00:43]}  Bb5 {[%clk 0:00:24]} 25. Rac1 {[%clk 0:00:41]}  Bxc4 {[%clk 0:00:20]} 26. Rxc4 {[%clk 0:00:42]}  b5 {[%clk 0:00:19]} 27. Rc5 {[%clk 0:00:40]}  g6 {[%clk 0:00:15]} 28. Qxh6 {[%clk 0:00:39]}  Bg7 {[%clk 0:00:16]} 29. Qg5 {[%clk 0:00:34]}  Qb6 {[%clk 0:00:11]} 30. Rfc1 {[%clk 0:00:33]}  Bf6 {[%clk 0:00:11]} 31. Qg4 {[%clk 0:00:28]}  Bg7 {[%clk 0:00:08]} 32. Rc6 {[%clk 0:00:26]}  Qb8 {[%clk 0:00:07]} 33. Bxd5 {[%clk 0:00:22]}  exd5 {[%clk 0:00:08]} 34. Rc8 {[%clk 0:00:23]}  Qe5 {[%clk 0:00:06]} 35. Rxe8+ {[%clk 0:00:24]}  Qxe8 {[%clk 0:00:06]} 36. Rc8 {[%clk 0:00:25]} 1-0


[Site "https://www.chess.com"]

[Event "Titled Tuesday Blitz March 28 Early 2023"]
[White "Kopczynski, Michal"]
[Black "Kilic, Eray"]
[WhiteFideId "1124200"]
[BlackFideId "44517173"]
[WhiteElo "2212"]
[BlackElo "2328"]
[Result "0-1"]
[Round "01"]
[TimeControl "180+2"]
[Date "2023.03.28"]
[WhiteClock "0:01:02"]
[BlackClock "0:01:40"]

1. e4 {[%clk 0:03:00]}  c5 {[%clk 0:02:59]} 2. d4 {[%clk 0:03:00]}  cxd4 {[%clk 0:02:59]} 3. c3 {[%clk 0:03:01]}  dxc3 {[%clk 0:03:00]} 4. Nxc3 {[%clk 0:03:02]}  e6 {[%clk 0:03:01]} 5. f4 {[%clk 0:03:03]}  Nc6 {[%clk 0:02:59]} 6. Nf3 {[%clk 0:03:03]}  Bc5 {[%clk 0:02:54]} 7. Bd3 {[%clk 0:03:03]}  d6 {[%clk 0:02:53]} 8. Qe2 {[%clk 0:03:03]}  Nf6 {[%clk 0:02:49]} 9. Bd2 {[%clk 0:03:04]}  O-O {[%clk 0:02:49]} 10. O-O-O {[%clk 0:03:04]}  e5 {[%clk 0:02:43]} 11. Kb1 {[%clk 0:02:57]}  Bg4 {[%clk 0:02:42]} 12. h3 {[%clk 0:02:54]}  Nd4 {[%clk 0:02:40]} 13. Qf1 {[%clk 0:02:49]}  Nxf3 {[%clk 0:02:39]} 14. gxf3 {[%clk 0:02:39]}  Bh5 {[%clk 0:02:24]} 15. fxe5 {[%clk 0:02:30]}  dxe5 {[%clk 0:02:25]} 16. Bg5 {[%clk 0:02:30]}  h6 {[%clk 0:02:24]} 17. Bh4 {[%clk 0:02:29]}  Bd4 {[%clk 0:02:24]} 18. Nd5 {[%clk 0:02:24]}  g5 {[%clk 0:02:24]} 19. Qg2 {[%clk 0:01:57]}  Nxd5 {[%clk 0:02:23]} 20. exd5 {[%clk 0:01:57]}  Qxd5 {[%clk 0:01:55]} 21. Bxg5 {[%clk 0:01:53]}  Qxf3 {[%clk 0:01:54]} 22. Qxf3 {[%clk 0:01:11]}  Bxf3 {[%clk 0:01:55]} 23. Bxh6 {[%clk 0:01:12]}  Bxd1 {[%clk 0:01:48]} 24. Bxf8 {[%clk 0:01:09]}  Bf3 {[%clk 0:01:47]} 25. Rf1 {[%clk 0:01:02]}  Bg2 {[%clk 0:01:40]} 0-1


[Site "https://www.chess.com"]

[Event "Titled Tuesday Blitz March 28 Early 2023"]
[White "Begunov, Konstantin"]
[Black "Flores, Diego"]
[WhiteFideId "4118510"]
[BlackFideId "108049"]
[WhiteElo "2079"]
[BlackElo "2606"]
[Result "1/2-1/2"]
[Round "01"]
[TimeControl "180+2"]
[Date "2023.03.28"]
[WhiteClock "0:00:05"]
[BlackClock "0:00:19"]

1. d4 {[%clk 0:02:57]}  Nf6 {[%clk 0:02:59]} 2. c4 {[%clk 0:02:56]}  e6 {[%clk 0:02:59]} 3. Nf3 {[%clk 0:02:56]}  c5 {[%clk 0:02:53]} 4. Nc3 {[%clk 0:02:55]}  cxd4 {[%clk 0:02:50]} 5. Nxd4 {[%clk 0:02:56]}  a6 {[%clk 0:02:47]} 6. g3 {[%clk 0:02:56]}  Qc7 {[%clk 0:02:45]} 7. Bg2 {[%clk 0:02:55]}  Nc6 {[%clk 0:02:35]} 8. O-O {[%clk 0:02:54]}  Be7 {[%clk 0:02:28]} 9. b3 {[%clk 0:02:52]}  d6 {[%clk 0:02:24]} 10. Bb2 {[%clk 0:02:51]}  Bd7 {[%clk 0:02:21]} 11. Rc1 {[%clk 0:02:51]}  Nxd4 {[%clk 0:02:21]} 12. Qxd4 {[%clk 0:02:50]}  O-O {[%clk 0:02:20]} 13. Ne4 {[%clk 0:02:46]}  Rfd8 {[%clk 0:02:12]} 14. Rfd1 {[%clk 0:02:43]}  Bc6 {[%clk 0:02:12]} 15. Rd2 {[%clk 0:02:26]}  Rac8 {[%clk 0:01:31]} 16. Qe3 {[%clk 0:02:13]}  Nxe4 {[%clk 0:01:24]} 17. Bxe4 {[%clk 0:02:14]}  Bf8 {[%clk 0:01:03]} 18. Rcd1 {[%clk 0:02:09]}  Qa5 {[%clk 0:01:03]} 19. Bc3 {[%clk 0:01:59]}  Qh5 {[%clk 0:01:04]} 20. Bf3 {[%clk 0:01:33]}  Bxf3 {[%clk 0:00:57]} 21. Qxf3 {[%clk 0:01:27]}  Qxf3 {[%clk 0:00:57]} 22. exf3 {[%clk 0:01:28]}  b5 {[%clk 0:00:57]} 23. Ba5 {[%clk 0:01:25]}  Rd7 {[%clk 0:00:58]} 24. Bb4 {[%clk 0:00:50]}  bxc4 {[%clk 0:00:54]} 25. bxc4 {[%clk 0:00:51]}  Rc6 {[%clk 0:00:53]} 26. f4 {[%clk 0:00:47]}  f5 {[%clk 0:00:53]} 27. Kg2 {[%clk 0:00:43]}  Kf7 {[%clk 0:00:53]} 28. Kf3 {[%clk 0:00:40]}  Be7 {[%clk 0:00:54]} 29. Rd3 {[%clk 0:00:37]}  g6 {[%clk 0:00:53]} 30. h3 {[%clk 0:00:35]}  h5 {[%clk 0:00:53]} 31. h4 {[%clk 0:00:34]}  Bf8 {[%clk 0:00:52]} 32. Ba3 {[%clk 0:00:33]}  Ke8 {[%clk 0:00:52]} 33. Rd4 {[%clk 0:00:26]}  Kf7 {[%clk 0:00:52]} 34. Rb1 {[%clk 0:00:26]}  Rdc7 {[%clk 0:00:51]} 35. Rbd1 {[%clk 0:00:20]}  Rd7 {[%clk 0:00:49]} 36. Rb1 {[%clk 0:00:20]}  Bg7 {[%clk 0:00:50]} 37. Rd3 {[%clk 0:00:19]}  Rxc4 {[%clk 0:00:46]} 38. Rb6 {[%clk 0:00:18]}  d5 {[%clk 0:00:44]} 39. Rxa6 {[%clk 0:00:16]}  Bd4 {[%clk 0:00:43]} 40. Bc1 {[%clk 0:00:14]}  Bc5 {[%clk 0:00:41]} 41. Be3 {[%clk 0:00:14]}  d4 {[%clk 0:00:41]} 42. Bd2 {[%clk 0:00:14]}  Rc2 {[%clk 0:00:41]} 43. a4 {[%clk 0:00:13]}  Ba7 {[%clk 0:00:40]} 44. a5 {[%clk 0:00:12]}  Rb7 {[%clk 0:00:40]} 45. Ke2 {[%clk 0:00:10]}  Ra2 {[%clk 0:00:36]} 46. Rd6 {[%clk 0:00:10]}  Bc5 {[%clk 0:00:36]} 47. Rc6 {[%clk 0:00:09]}  Bb4 {[%clk 0:00:34]} 48. Rxd4 {[%clk 0:00:09]}  Bxa5 {[%clk 0:00:34]} 49. Rcd6 {[%clk 0:00:08]}  Kf6 {[%clk 0:00:33]} 50. Kf3 {[%clk 0:00:09]}  Rb3+ {[%clk 0:00:18]} 51. Kg2 {[%clk 0:00:08]}  Bb6 {[%clk 0:00:18]} 52. Rd3 {[%clk 0:00:07]}  Rxd3 {[%clk 0:00:17]} 53. Rxd3 {[%clk 0:00:08]}  Ba5 {[%clk 0:00:17]} 54. Bxa5 {[%clk 0:00:08]}  Rxa5 {[%clk 0:00:18]} 55. Re3 {[%clk 0:00:08]}  Rd5 {[%clk 0:00:18]} 56. Kf3 {[%clk 0:00:09]}  Rd4 {[%clk 0:00:18]} 57. Kg2 {[%clk 0:00:09]}  Ke7 {[%clk 0:00:19]} 58. Kf3 {[%clk 0:00:10]}  Kd6 {[%clk 0:00:19]} 59. Kg2 {[%clk 0:00:10]}  Kd5 {[%clk 0:00:20]} 60. Kf3 {[%clk 0:00:10]}  Re4 {[%clk 0:00:20]} 61. Rxe4 {[%clk 0:00:08]}  fxe4+ {[%clk 0:00:17]} 62. Ke3 {[%clk 0:00:09]}  e5 {[%clk 0:00:17]} 63. f3 {[%clk 0:00:04]}  exf3 {[%clk 0:00:16]} 64. Kxf3 {[%clk 0:00:03]}  Kd4 {[%clk 0:00:16]} 65. fxe5 {[%clk 0:00:03]}  Kxe5 {[%clk 0:00:17]} 66. Ke3 {[%clk 0:00:03]}  Kf5 {[%clk 0:00:17]} 67. Kf3 {[%clk 0:00:04]}  Ke5 {[%clk 0:00:18]} 68. Ke3 {[%clk 0:00:04]}  Kf5 {[%clk 0:00:19]} 69. Kf3 {[%clk 0:00:05]}  Ke5 {[%clk 0:00:19]} 1/2-1/2


[Site "https://www.chess.com"]

[Event "Titled Tuesday Blitz March 28 Early 2023"]
[White "Bryakin, Mikhail"]
[Black "Mazurkiewicz, Michal"]
[WhiteFideId "4165314"]
[BlackFideId "1124943"]
[WhiteElo "2449"]
[BlackElo "2054"]
[Result "1-0"]
[Round "01"]
[TimeControl "180+2"]
[Date "2023.03.28"]
[WhiteClock "0:01:29"]
[BlackClock "0:00:44"]

1. e4 {[%clk 0:02:57]}  d6 {[%clk 0:02:59]} 2. d4 {[%clk 0:02:56]}  Nf6 {[%clk 0:02:59]} 3. Nc3 {[%clk 0:02:56]}  c6 {[%clk 0:02:59]} 4. a4 {[%clk 0:02:50]}  Qa5 {[%clk 0:02:58]} 5. Bd3 {[%clk 0:02:50]}  e5 {[%clk 0:02:58]} 6. Ne2 {[%clk 0:02:44]}  Nbd7 {[%clk 0:02:58]} 7. O-O {[%clk 0:02:43]}  Be7 {[%clk 0:02:58]} 8. h3 {[%clk 0:02:42]}  O-O {[%clk 0:02:58]} 9. f4 {[%clk 0:02:42]}  Re8 {[%clk 0:02:56]} 10. Be3 {[%clk 0:02:40]}  Qc7 {[%clk 0:02:53]} 11. Qd2 {[%clk 0:02:34]}  b6 {[%clk 0:02:46]} 12. Rae1 {[%clk 0:02:30]}  Bb7 {[%clk 0:02:45]} 13. Ng3 {[%clk 0:02:25]}  a6 {[%clk 0:02:42]} 14. Nf5 {[%clk 0:02:24]}  Bf8 {[%clk 0:02:42]} 15. fxe5 {[%clk 0:02:13]}  dxe5 {[%clk 0:02:42]} 16. Bc4 {[%clk 0:02:13]}  b5 {[%clk 0:02:39]} 17. Bb3 {[%clk 0:02:09]}  b4 {[%clk 0:02:16]} 18. Ne2 {[%clk 0:02:08]}  Nxe4 {[%clk 0:02:08]} 19. Bxf7+ {[%clk 0:02:04]}  Kxf7 {[%clk 0:02:00]} 20. Nd6+ {[%clk 0:02:02]}  Kg8 {[%clk 0:01:53]} 21. Nxe4 {[%clk 0:02:00]}  exd4 {[%clk 0:01:46]} 22. Qxd4 {[%clk 0:01:59]}  Qe5 {[%clk 0:01:35]} 23. Qxe5 {[%clk 0:01:57]}  Rxe5 {[%clk 0:01:35]} 24. N2g3 {[%clk 0:01:57]}  Rae8 {[%clk 0:01:27]} 25. Bf4 {[%clk 0:01:53]}  R5e6 {[%clk 0:01:24]} 26. Rd1 {[%clk 0:01:49]}  Nb6 {[%clk 0:01:09]} 27. Nd6 {[%clk 0:01:43]}  Bxd6 {[%clk 0:00:59]} 28. Bxd6 {[%clk 0:01:44]}  Rg6 {[%clk 0:00:47]} 29. Nf5 {[%clk 0:01:38]}  Nd5 {[%clk 0:00:44]} 30. Bc5 {[%clk 0:01:29]} 1-0


[Site "https://www.chess.com"]